bitfinex-derivatives/quotes_ETHF0:USTF0_20240904
["timestamp","ask_amount","ask_price","bid_price","bid_amount"]
[1725479433052,3.22831,2449.2,2448.8,0.00612207]
[1725479433256,0.3818,2449.1,2449.0,0.40833]
[1725479433558,0.79013,2449.1,2449.0,0.40833]
[1725479433767,0.79014,2449.1,2449.0,0.40835]
[1725479434265,0.40836,2449.0,2448.9,0.40836]
[1725479435158,0.79014,2449.1,2449.0,0.40835]
[1725479437361,3.2078,2449.2,2449.1,1.42916]
[1725479437568,3.2078,2449.2,2449.1,1.80596]
[1725479437860,3.2078,2449.2,2449.1,0.78513]
[1725479439662,3.2078,2449.2,2449.1,0.40833]
[1725479439967,3.61611,2449.2,2449.1,0.40833]
[1725479440973,0.40836,2449.0,2448.9,0.40835]
[1725479441762,3.62053,2449.1,2449.0,0.40835]
[1725479442565,0.3922,2449.1,2449.0,0.40835]
[1725479443370,3.61612,2449.2,2449.1,0.40833]
[1725479443670,0.4083,2449.3,2449.2,0.4083]
[1725479443870,0.3651,2449.4,2448.9,1.3955]
[1725479444068,0.77339,2449.4,2449.3,0.4083]
[1725479445465,0.4083,2449.3,2449.2,0.4083]
[1725479445776,3.59339,2449.4,2449.3,0.4083]
[1725479446467,0.77339,2449.4,2449.3,0.4083]
[1725479447474,0.3651,2449.4,2449.3,0.4083]
[1725479447775,0.40828,2449.4,2449.3,1.45398118]
[1725479448065,0.40828,2449.4,2449.3,0.95841277]
[1725479448274,6.43607,2449.5,2449.3,1.04561012]
[1725479448481,6.43607,2449.5,2449.3,0.90377735]
[1725479448482,0.40828,2449.4,2449.3,0.90377735]
[1725479448675,0.40828,2449.4,2449.3,0.95844009]
[1725479448973,0.40828,2449.4,2449.3,1.45398016]
[1725479449976,0.40828,2449.4,2449.3,0.40828]
[1725479450171,0.40828,2449.4,2449.3,1.45418283]
[1725479450572,0.40828,2449.4,2449.3,1.04590283]
[1725479450870,0.40828,2449.4,2448.5,4.27474072]
[1725479450871,4.0824,2449.4,2448.5,4.27474072]
[1725479451068,7.45707,2448.9,2448.6,0.78311]
[1725479451271,1.02079,2449.2,2448.6,0.78311]
[1725479451272,3.2078,2449.2,2448.8,1.76977667]
[1725479451471,3.2078,2449.2,2449.1,0.40833]
[1725479451673,3.61611,2449.2,2449.1,1.45461114]
[1725479451873,3.98281,2449.2,2449.1,0.40833]
[1725479452066,3.98281,2449.2,2448.8,0.00612207]
[1725479452067,0.40835,2449.0,2448.8,0.00612207]
[1725479452265,0.40835,2449.0,2448.9,1.04623354]
[1725479452977,0.40835,2449.0,2448.9,1.45459354]
[1725479453576,4.24922,2449.0,2448.9,1.04623354]
[1725479454176,0.40848,2448.2,2448.1,0.095]
[1725479454368,0.40848,2448.2,2448.0,0.768]
[1725479454565,0.40848,2448.2,2448.1,0.55078875]
[1725479454768,2.82,2448.3,2448.0,0.3595]
[1725479454970,6.0278,2448.1,2447.7,0.40855]
[1725479455280,0.40852,2448.0,2447.8,0.55095263]
[1725479455467,0.40852,2448.0,2447.8,0.49563833]
[1725479455769,0.40853,2447.9,2447.7,0.00612207]
[1725479455984,3.22853,2447.9,2447.7,0.00612207]
[1725479457267,0.40852,2448.0,2447.7,0.41468207]
[1725479457476,0.00612207,2448.1,2447.8,6.9056]
[1725479457666,0.095,2448.5,2448.4,0.40845]
[1725479457875,6.3889,2448.9,2448.4,0.40845]
[1725479458074,6.79727,2448.9,2448.4,0.40845]
[1725479458375,3.2078,2448.6,2448.4,0.40845]
[1725479458675,0.00612207,2448.7,2448.4,0.40845]
[1725479458874,0.00612207,2448.7,2448.0,1.1212]
[1725479459074,0.00612207,2448.7,2448.6,0.40841]
[1725479459575,0.00612207,2448.7,2448.5,0.40842]
[1725479459770,0.00612207,2448.7,2448.4,0.40844]
[1725479460075,3.2078,2448.6,2448.4,0.40844]
[1725479460564,3.2078,2448.6,2448.5,0.40843]
[1725479460764,0.00612207,2448.7,2448.5,0.40842]
[1725479460969,0.00612207,2448.7,2448.6,0.7228]
[1725479461171,3.21392207,2448.7,2448.6,0.7228]
[1725479461366,3.21392207,2448.7,2448.0,0.3907]
[1725479461367,3.21392207,2448.7,2448.3,0.40845]
[1725479461577,6.44232207,2448.7,2448.3,0.40845]
[1725479461783,6.44232207,2448.7,2448.2,0.40847]
[1725479461973,0.40841,2448.6,2448.1,0.7228]
[1725479462171,6.44232207,2448.7,2448.2,0.95902862]
[1725479462475,6.44232207,2448.7,2448.2,0.40847]
[1725479462680,0.40841,2448.6,2448.2,0.40847]
[1725479462881,0.40841,2448.6,2448.1,0.7228]
[1725479463081,3.2078,2448.4,2448.1,0.7228]
[1725479463571,3.2078,2448.4,2448.2,0.40847]
[1725479463772,3.2078,2448.4,2448.1,0.7228]
[1725479463773,3.61625,2448.4,2448.1,0.7228]
[1725479463974,3.61894,2448.5,2448.1,0.7228]
[1725479464277,6.03392207,2448.7,2448.1,0.7228]
[1725479464680,6.44232207,2448.7,2448.3,0.40845]
[1725479465380,6.44232207,2448.7,2448.4,0.40845]
[1725479465572,6.44232207,2448.7,2448.3,0.40845]
[1725479466279,6.44232207,2448.7,2448.4,0.40844]
[1725479466783,6.44232207,2448.7,2448.3,0.40845]
[1725479467085,6.03392207,2448.7,2448.1,0.7228]
[1725479467379,3.62232207,2448.7,2448.4,0.40844]
[1725479467978,3.62232207,2448.7,2448.5,0.40842]
[1725479467979,3.21392207,2448.7,2448.5,0.40842]
[1725479468175,0.00612207,2448.7,2448.2,2.82]
[1725479468371,0.00612207,2448.7,2448.6,0.40841]
[1725479468977,0.00612207,2448.7,2448.6,4.49241]
[1725479469579,0.50332,2449.2,2449.0,0.40834]
[1725479469778,0.40832,2449.2,2449.0,0.40834]
[1725479470176,0.79651,2449.3,2449.1,0.40833]
[1725479470375,0.79651,2449.3,2449.1,0.40832]
[1725479470575,0.40831,2449.3,2449.1,0.40832]
[1725479470988,0.40831,2449.3,2449.1,1.13032]
[1725479471185,3.60212207,2449.4,2449.1,1.13032]
[1725479471478,0.4083,2449.3,2449.1,1.13032]
[1725479473081,0.40831,2449.2,2449.1,1.13032]
[1725479474291,3.61611,2449.2,2449.1,1.13032]
[1725479476994,3.2078,2449.2,2449.1,1.52102]
[1725479477395,3.61611,2449.2,2449.1,1.52102]
[1725479477590,3.2078,2449.2,2449.1,1.52102]
[1725479480086,3.2078,2449.2,2449.1,2.54185]
[1725479480484,0.00612207,2449.4,2449.3,0.4083]
[1725479480890,3.2078,2449.6,2449.5,0.40826]
[1725479481089,3.2078,2449.6,2449.5,7.31066]
[1725479481287,0.095,2450.0,2449.9,0.4082]
[1725479481484,3.97295,2450.2,2449.9,0.4082]
[1725479481689,3.97295,2450.2,2450.0,0.40818]
[1725479481989,3.97295,2450.2,2450.0,0.40817]
[1725479482191,3.2078,2450.2,2450.1,0.40816]
[1725479482489,3.2078,2450.2,2450.1,3.22816]
[1725479482693,3.2078,2450.2,2450.1,7.30976]
[1725479482985,3.2078,2450.2,2450.1,4.48976]
[1725479485894,0.00612207,2450.3,2450.2,0.40815]
[1725479486085,0.00612207,2450.3,2450.2,1.48895]
[1725479487399,0.00612207,2450.3,2449.7,2.82]
[1725479487693,0.41426207,2450.3,2450.1,0.40816]
[1725479488396,0.00612207,2450.3,2450.2,0.40815]
[1725479488884,0.00612207,2450.3,2449.9,2.82]
[1725479488885,0.00612207,2450.3,2450.1,0.40815]
[1725479489088,0.41426207,2450.3,2450.1,0.40815]
[1725479489388,0.41426207,2450.3,2450.0,0.40818]
[1725479489389,3.2078,2450.2,2450.0,0.40818]
[1725479489589,3.61596,2450.2,2450.0,0.40818]
[1725479490088,0.40816,2450.1,2449.9,0.40818]
[1725479490283,0.40817,2450.1,2449.9,0.40818]
[1725479491186,0.00612207,2450.3,2450.2,0.40815]
[1725479497500,0.00612207,2450.3,2450.2,1.15755]
[1725479497898,0.00612207,2450.3,2450.2,5.23915]
[1725479499001,0.00612207,2450.3,2450.2,1.15755]
[1725479499200,0.41425207,2450.3,2450.2,1.15755]
[1725479500597,4.08772207,2450.3,2449.8,0.3837]
[1725479500793,0.40818,2450.1,2450.0,0.40817]
[1725479501104,3.61596,2450.2,2450.1,0.40816]
[1725479501493,0.40817,2450.1,2450.0,0.40817]
[1725479501695,0.40816,2450.2,2450.1,0.40816]
[1725479502201,0.00612207,2450.3,2450.2,0.40815]
[1725479502202,0.41426207,2450.3,2450.2,0.40815]
[1725479503398,0.40816,2450.2,2450.1,0.40815]
[1725479503804,0.40817,2450.1,2450.0,0.40816]
[1725479504106,1.17957,2450.1,2450.0,0.40816]
[1725479504595,0.7714,2450.1,2450.0,0.40816]
[1725479504902,3.61596,2450.2,2450.1,0.40816]
[1725479505200,0.00612207,2450.3,2450.2,0.40815]
[1725479505500,0.41425207,2450.3,2450.2,0.40815]
[1725479506102,0.00612207,2450.3,2450.2,0.40815]
[1725479506804,0.41425207,2450.3,2450.2,0.40815]
[1725479507598,0.00612207,2450.3,2450.2,0.40815]
[1725479508519,0.00612207,2450.3,2450.2,0.76985]
[1725479509003,0.00612207,2450.3,2450.2,4.85145]
[1725479509397,0.00612207,2450.3,2450.2,0.76985]
[1725479509598,0.00612207,2450.3,2450.2,4.85145]
[1725479510711,0.41425207,2450.3,2450.2,0.76985]
[1725479511206,0.41425207,2450.3,2450.2,0.40815]
[1725479511901,0.80255207,2450.3,2450.2,0.40815]
[1725479512904,0.40815,2450.2,2449.9,0.3617]
[1725479513105,0.40817,2450.1,2450.0,0.40817]
[1725479515102,0.40819,2450.0,2449.9,0.40818]
[1725479515302,3.97469,2450.0,2449.9,0.40818]
[1725479516905,0.40819,2450.0,2449.9,0.40818]
[1725479517100,0.40817,2450.1,2450.0,0.40817]
[1725479517817,0.40819,2450.0,2449.9,0.40819]
[1725479518808,0.4082,2449.9,2449.8,0.7919]
[1725479519307,0.4082,2449.9,2449.8,0.40821]
[1725479520415,0.40821,2449.8,2449.7,1.15992]
[1725479520618,1.02046,2450.0,2449.8,0.4082]
[1725479520619,0.40821,2449.9,2449.8,0.4082]
[1725479521318,0.40821,2449.8,2449.7,1.15992]
[1725479521517,3.61601,2449.8,2449.7,1.15992]
[1725479521815,0.40833,2449.1,2449.0,0.50947207]
[1725479522016,3.2078,2449.3,2449.0,0.00612207]
[1725479522213,0.40832,2449.2,2449.0,0.00612207]
[1725479522411,0.40833,2449.1,2449.0,0.00612207]
[1725479523316,0.7348,2449.2,2449.0,0.41446207]
[1725479523532,0.40833,2449.1,2449.0,0.41446207]
[1725479523720,1.42916,2449.1,2449.0,0.00612207]
[1725479523925,5.51236,2449.1,2449.0,0.00612207]
[1725479524215,0.40833,2449.1,2449.0,0.00612207]
[1725479525713,4.22856,2449.3,2449.1,0.40833]
[1725479525714,3.2078,2449.3,2449.1,0.40833]
[1725479525917,3.2078,2449.3,2449.2,0.40831]
[1725479528118,3.6161,2449.3,2449.2,0.40831]
[1725479528321,3.2078,2449.3,2449.2,0.40831]
[1725479529220,0.40828,2449.4,2449.3,0.40829]
[1725479529528,0.40829,2449.4,2449.2,0.4083]
[1725479529724,0.4083,2449.3,2449.2,0.4083]
[1725479530020,3.2078,2449.3,2449.0,0.00612207]
[1725479530221,0.40833,2449.1,2449.0,0.41447207]
[1725479530422,0.40832,2449.2,2449.1,0.40833]
[1725479530620,0.40831,2449.2,2449.1,0.40833]
[1725479530829,0.4083,2449.3,2449.2,0.40831]
[1725479531032,0.4083,2449.3,2449.2,0.77321]
[1725479531925,0.4083,2449.3,2449.2,0.3649]
[1725479532126,0.4083,2449.3,2449.2,0.77321]
[1725479532530,3.6161,2449.3,2449.2,0.77321]
[1725479533128,3.6161,2449.3,2449.2,0.3649]
[1725479534431,4.63685,2449.3,2449.2,0.3649]
[1725479534728,0.40831,2449.2,2449.1,0.79313]
[1725479536020,0.40831,2449.2,2449.1,0.3848]
[1725479536220,0.40831,2449.2,2449.1,0.79313]
[1725479539528,0.40833,2449.1,2449.0,0.41445207]
[1725479540126,0.40833,2449.1,2449.0,0.00612207]
[1725479540329,2.44999,2449.1,2449.0,0.00612207]
[1725479540526,5.26999,2449.1,2449.0,0.00612207]
[1725479541329,5.26999,2449.1,2448.4,0.095]
[1725479541330,0.40843,2448.5,2448.4,0.095]
[1725479541533,0.40843,2448.5,2448.4,0.40845]
[1725479544534,0.40844,2448.5,2448.4,0.40844]
[1725479545531,1.02712207,2448.7,2448.3,1.1606]
[1725479545532,0.40845,2448.4,2448.3,1.56905]
[1725479545737,0.40845,2448.4,2448.3,1.1606]
[1725479546135,0.40846,2448.3,2448.2,0.00612207]
[1725479546332,6.92088,2448.3,2448.2,0.00612207]
[1725479546530,0.40855,2447.8,2447.7,0.095]
[1725479546730,1.0213,2448.0,2447.5,1.1277]
[1725479546731,0.40852,2448.0,2447.5,1.1277]
[1725479547132,0.40852,2448.0,2447.8,0.40853]
[1725479547433,0.40852,2448.0,2447.9,0.76503]
[1725479547635,6.43631,2448.1,2447.9,0.76503]
[1725479547844,3.2078,2448.1,2448.0,0.40851]
[1725479548138,3.2078,2448.1,2448.0,1.15831]
[1725479548639,3.6163,2448.1,2448.0,1.15831]
[1725479548940,3.2078,2448.1,2448.0,1.15831]
[1725479549433,4.111,2448.3,2448.2,1.42968]
[1725479549639,3.2078,2448.5,2448.4,0.40845]
[1725479552836,2.82612207,2448.7,2448.4,0.40845]
[1725479553047,0.00612207,2448.7,2448.6,0.40841]
[1725479553545,0.41452207,2448.7,2448.5,1.14532]
[1725479553941,0.00612207,2448.7,2448.5,1.14532]
[1725479554144,0.00612207,2448.7,2448.6,0.40841]
[1725479555537,0.41452207,2448.7,2448.5,1.14532]
[1725479555733,0.40842,2448.6,2448.3,0.369]
[1725479555939,3.2078,2448.5,2448.4,0.40844]
[1725479556949,3.61624,2448.5,2448.3,0.77746]
[1725479557241,0.40845,2448.4,2448.3,0.369]
[1725479557433,3.99964,2448.5,2448.3,0.77746]
[1725479557828,0.40845,2448.4,2448.3,0.369]
[1725479558839,0.40846,2448.3,2448.1,0.40848]
[1725479559049,0.386,2448.3,2448.2,0.40848]
[1725479559235,0.79447,2448.3,2448.1,0.40848]
[1725479559739,0.40851,2448.0,2447.9,1.085]
[1725479559943,0.40851,2448.0,2447.7,0.73542207]
[1725479560139,0.40851,2448.0,2447.8,0.40855]
[1725479560334,0.40851,2448.0,2447.9,0.40853]
[1725479560941,3.2016,2448.1,2447.9,0.40853]
[1725479561143,3.6101,2448.1,2447.9,0.40853]
[1725479561339,0.40851,2448.0,2447.7,0.73542207]
[1725479561538,3.61011,2448.1,2447.9,0.40853]
[1725479561739,0.3816,2448.1,2447.9,0.40853]
[1725479562335,0.40851,2448.0,2447.8,0.40854]
[1725479562540,0.40851,2448.0,2447.9,0.40853]
[1725479563339,0.79011,2448.1,2447.9,0.40853]
[1725479563736,0.40851,2448.0,2447.8,0.40853]
[1725479564040,0.79011,2448.1,2447.9,0.40853]
[1725479564240,0.40851,2448.0,2447.9,0.40853]
[1725479566750,3.61629,2448.2,2447.9,4.0848]
[1725479567047,5.13214,2448.4,2448.2,0.40847]
[1725479567048,0.40846,2448.3,2448.2,0.40847]
[1725479568450,0.40846,2448.3,2448.1,0.40848]
[1725479568948,0.40846,2448.3,2448.1,1.18228]
[1725479569151,0.40845,2448.4,2448.2,0.40848]
[1725479569442,0.40847,2448.3,2448.1,1.18228]
[1725479570549,7.04892,2448.5,2448.1,1.18228]
[1725479570742,0.40847,2448.3,2448.1,1.18228]
[1725479570945,7.04892,2448.5,2448.1,1.18228]
[1725479571249,0.40847,2448.3,2448.1,1.18228]
[1725479571746,3.61628,2448.2,2448.1,1.18228]
[1725479571958,3.2078,2448.2,2448.1,1.18228]
[1725479574447,3.61628,2448.2,2448.1,1.18228]
[1725479574650,3.2078,2448.2,2448.1,1.18228]
[1725479575852,0.40847,2448.3,2448.1,1.18228]
[1725479575853,6.0278,2448.5,2448.1,0.7738]
[1725479576067,0.10112207,2448.7,2448.6,0.40841]
[1725479576244,0.00612207,2448.7,2448.6,0.40841]
[1725479576450,0.41452207,2448.7,2448.6,0.40841]
[1725479576649,0.41452207,2448.7,2448.5,0.40842]
[1725479576849,3.23452207,2448.7,2448.5,0.40842]
[1725479577051,0.40845,2448.4,2448.2,0.40848]
[1725479577352,3.2078,2448.5,2448.3,0.40846]
[1725479577562,0.40846,2448.3,2448.2,0.40847]
[1725479577750,0.40846,2448.3,2448.1,0.7738]
[1725479578054,0.40845,2448.4,2448.2,0.40847]
[1725479578959,0.40845,2448.4,2448.1,1.18229]
[1725479579252,0.40847,2448.3,2448.1,1.18229]
[1725479579557,0.40848,2448.2,2448.1,1.18229]
[1725479579951,0.40847,2448.3,2448.1,1.18229]
[1725479580251,6.0278,2448.5,2448.1,0.7738]
[1725479580455,5.13813207,2448.7,2448.3,1.02116]
[1725479580456,4.11712207,2448.7,2448.3,1.02116]
[1725479580660,4.11712207,2448.7,2448.6,0.40841]
[1725479581158,4.11712207,2448.7,2448.5,1.16782]
[1725479581353,4.11712207,2448.7,2448.6,0.40841]
[1725479581548,0.00612207,2448.7,2448.6,0.40841]
[1725479582747,0.00612207,2448.7,2448.5,0.7594]
[1725479582952,0.41452207,2448.7,2448.5,0.7594]
[1725479583257,0.40841,2448.6,2448.5,0.7594]
[1725479583568,1.14943207,2448.7,2448.5,0.7594]
[1725479583761,0.74102207,2448.7,2448.5,1.16783]
[1725479584055,0.77042207,2448.7,2448.5,1.16783]
[1725479584261,0.00612207,2448.7,2448.6,0.40841]
[1725479584664,0.41452207,2448.7,2448.5,1.16782]
[1725479584961,0.40841,2448.6,2448.5,0.7594]
[1725479585158,0.41453207,2448.7,2448.5,0.7594]
[1725479585362,0.00612207,2448.7,2448.5,1.16783]
[1725479585557,0.41453207,2448.7,2448.5,1.16783]
[1725479586958,1.02108,2448.5,2448.1,0.40849]
[1725479587156,6.904,2448.6,2448.1,0.40849]
[1725479587157,3.5941,2448.4,2448.2,1.04435983]
[1725479587355,3.5941,2448.4,2448.1,1.14139]
[1725479587562,0.40846,2448.3,2448.2,1.0444362]
[1725479587766,4.00256,2448.4,2448.2,1.4529162]
[1725479588055,4.00256,2448.4,2448.2,0.40848]
[1725479588452,0.40846,2448.3,2448.1,1.14139]
[1725479588649,4.00256,2448.4,2448.2,0.95833243]
[1725479588852,4.00256,2448.4,2448.2,0.40848]
[1725479589364,4.00256,2448.4,2448.3,1.04445152]
[1725479589551,4.00256,2448.4,2448.2,0.40848]
[1725479589755,0.40847,2448.3,2448.1,1.14138]
[1725479589960,0.40847,2448.3,2448.2,1.04414359]
[1725479590358,0.40853,2447.9,2447.8,1.16094]
[1725479590559,0.40853,2447.9,2447.8,1.79669435]
[1725479590859,3.2078,2448.0,2447.8,1.79669435]
[1725479590860,3.61632,2448.0,2447.8,2.20523435]
[1725479591074,0.40851,2448.1,2447.9,0.40853]
[1725479591268,0.40851,2448.1,2448.0,1.43046583]
[1725479591564,0.3927,2448.2,2448.1,0.4085]
[1725479591757,0.80118,2448.2,2448.0,0.7945]
[1725479592359,6.43627,2448.3,2448.1,0.40848]
[1725479592564,6.43627,2448.3,2448.1,0.4085]
[1725479592865,0.40852,2448.0,2447.8,1.16093]
[1725479593066,3.61632,2448.0,2447.8,1.54693]
[1725479593365,0.40852,2448.0,2447.8,1.54693]
[1725479593666,0.40851,2448.1,2447.9,1.45305995]
[1725479593858,0.40851,2448.1,2447.9,0.40853]
[1725479594568,7.04898,2448.3,2447.8,1.1384]
[1725479594569,3.2078,2448.3,2447.8,1.1384]
[1725479594767,3.2078,2448.3,2448.2,0.40848]
[1725479595071,3.61627,2448.3,2448.1,0.40849]
[1725479595868,0.40848,2448.2,2448.0,0.4085]
[1725479596566,6.0278,2448.3,2448.1,0.4085]
[1725479596567,6.43627,2448.3,2448.1,0.4085]
[1725479598467,0.40848,2448.2,2448.0,0.4085]
[1725479598675,0.40848,2448.2,2447.8,1.1384]
[1725479598861,0.40848,2448.2,2448.0,0.4085]
[1725479599172,2.82,2448.3,2447.9,0.40853]
[1725479599173,0.40851,2448.0,2447.9,0.40853]
[1725479599359,0.40851,2448.0,2447.9,0.95823797]
[1725479599563,0.40851,2448.0,2447.9,1.45269589]
[1725479599870,3.2078,2448.1,2447.9,1.45269589]
[1725479600172,0.40851,2448.0,2447.8,1.54694]
[1725479600470,0.40853,2447.9,2447.8,1.18873]
[1725479600660,0.40853,2447.9,2447.8,2.23308794]
[1725479600855,0.40853,2447.9,2447.8,2.23313185]
[1725479601258,1.15562,2448.0,2447.9,0.40853]
[1725479601466,0.40853,2447.9,2447.8,1.18874]
[1725479601669,1.15563,2448.0,2447.8,2.23320276]
[1725479601873,1.15563,2448.0,2447.8,1.18874]
[1725479602070,0.40853,2447.9,2447.8,1.18874]
[1725479602268,0.40853,2447.9,2447.8,2.23320654]
[1725479602460,0.40853,2447.9,2447.8,1.04446654]
[1725479602771,0.40853,2447.9,2447.8,0.40855]
[1725479602772,3.22853,2447.9,2447.8,0.40855]
[1725479602971,0.40855,2447.8,2447.7,0.41467207]
[1725479603262,0.40855,2447.8,2447.7,1.45930732]
[1725479603762,0.40854,2447.9,2447.8,0.40855]
[1725479604363,0.40854,2447.9,2447.8,1.15875]
[1725479607868,0.40854,2447.9,2447.8,0.7502]
[1725479608170,0.40854,2447.9,2447.8,1.15875]
[1725479609374,0.40854,2447.9,2447.8,0.7502]
[1725479609770,1.42992,2447.8,2447.7,0.00612207]
[1725479609969,9.74469,2447.8,2447.7,0.00612207]
[1725479610162,10.31909352,2447.8,2447.7,0.00612207]
[1725479610366,3.82185352,2447.8,2447.7,0.00612207]
[1725479610865,3.61635,2447.8,2447.7,0.36732207]
[1725479611577,4.63772,2447.8,2447.7,0.36732207]
[1725479611770,8.72332,2447.8,2447.7,0.00612207]
[1725479612074,11.74749506,2447.8,2447.7,0.00612207]
[1725479612476,6.64052506,2447.8,2447.7,0.00612207]
[1725479613068,6.64052506,2447.8,2447.7,0.41468207]
[1725479613272,6.23197506,2447.8,2447.7,0.41468207]
[1725479613465,3.41197506,2447.8,2447.7,0.41468207]
[1725479613671,3.82052506,2447.8,2447.7,0.41468207]
[1725479614072,3.41197506,2447.8,2447.7,0.41468207]
[1725479614377,3.82052506,2447.8,2447.7,0.41468207]
[1725479614582,3.41197506,2447.8,2447.7,0.41468207]
[1725479615171,3.82052506,2447.8,2447.7,0.41468207]
[1725479615974,3.82052506,2447.8,2447.7,0.00612207]
[1725479616575,11.74749506,2447.8,2447.7,0.00612207]
[1725479617779,6.64052506,2447.8,2447.7,0.00612207]
[1725479618385,7.66189506,2447.8,2447.7,0.00612207]
[1725479618886,6.64052506,2447.8,2447.7,0.00612207]
[1725479619084,3.41197506,2447.8,2447.7,0.41468207]
[1725479619690,3.2078,2447.8,2447.7,0.41468207]
[1725479620182,3.61635,2447.8,2447.7,0.41468207]
[1725479620383,3.61635,2447.8,2447.7,0.00612207]
[1725479620691,3.82060474,2447.8,2447.7,0.00612207]
[1725479622377,9.94894474,2447.8,2447.7,0.00612207]
[1725479622583,10.34234474,2447.8,2447.7,0.00612207]
[1725479622882,13.16234474,2447.8,2447.7,0.00612207]
[1725479624380,19.16234474,2447.8,2447.7,0.00612207]
[1725479625083,0.40861,2447.4,2447.3,0.7363]
[1725479625283,3.61641,2447.4,2447.3,0.7363]
[1725479625585,0.40861,2447.4,2447.3,0.7363]
[1725479625891,0.40861,2447.4,2447.3,1.14493]
[1725479626192,2.82,2447.5,2447.4,0.40861]
[1725479626492,0.4086,2447.5,2447.3,0.7363]
[1725479626787,0.4086,2447.5,2447.4,0.40861]
[1725479626986,0.3781,2447.6,2447.4,0.40861]
[1725479627286,0.3781,2447.6,2447.3,0.7363]
[1725479627287,0.4086,2447.5,2447.3,1.14492]
[1725479628893,3.61641,2447.4,2447.3,0.7363]
[1725479630306,3.2078,2447.7,2447.6,0.40858]
[1725479630598,0.40855,2447.8,2447.3,0.7363]
[1725479630802,0.40855,2447.8,2447.6,0.40857]
[1725479631004,0.40855,2447.8,2447.7,0.7211]
[1725479631203,3.22854,2447.9,2447.7,1.48476]
[1725479631398,0.40855,2447.8,2447.7,1.0762]
[1725479631801,3.22854,2447.9,2447.7,1.0762]
[1725479632002,0.40855,2447.8,2447.7,1.0762]
[1725479633606,3.22854,2447.9,2447.7,1.0762]
[1725479633809,0.40855,2447.8,2447.7,1.0762]
[1725479634108,0.61248814,2447.8,2447.7,1.0762]
[1725479634308,0.61248814,2447.8,2447.7,0.7211]
[1725479637906,0.40861,2447.5,2447.3,0.40862]
[1725479638106,0.40861,2447.5,2447.4,1.04504385]
[1725479638107,3.61641,2447.5,2447.4,1.04504385]
[1725479638311,3.61641,2447.5,2447.4,0.55015186]
[1725479638506,3.61641,2447.5,2447.4,1.04533741]
[1725479638908,3.61641,2447.5,2447.4,0.49502695]
[1725479639116,3.61641,2447.5,2447.4,0.49503149]
[1725479639413,3.61641,2447.5,2447.4,0.55029892]
[1725479639714,3.61641,2447.5,2447.3,0.80033]
[1725479639914,3.61641,2447.5,2447.4,0.49503085]
[1725479640115,3.61641,2447.5,2447.3,0.80033]
[1725479640507,3.22861,2447.4,2447.3,0.3917]
[1725479643512,3.22861,2447.4,2447.3,0.80033]
[1725479643513,2.82,2447.4,2447.3,0.80033]
[1725479643705,0.40857,2447.7,2447.5,0.40858]
[1725479643910,3.82028814,2447.8,2447.6,1.14688]
[1725479644111,3.61635,2447.8,2447.7,0.3844]
[1725479644316,3.81906789,2447.8,2447.7,0.3844]
[1725479644711,4.84043789,2447.8,2447.7,0.3844]
[1725479644909,0.40856,2447.7,2447.6,0.3831]
[1725479645114,3.61206,2447.7,2447.6,0.3831]
[1725479645318,1.02145,2447.6,2447.3,0.74]
[1725479645516,1.02145,2447.6,2447.3,1.14863]
[1725479645517,3.61641,2447.5,2447.3,1.14863]
[1725479646119,0.40859,2447.6,2447.4,0.40861]
[1725479646510,3.61635,2447.8,2447.5,0.55026145]
[1725479646711,3.41132734,2447.8,2447.6,0.3613]
[1725479646915,3.22856,2447.7,2447.6,0.3613]
[1725479650417,0.40861,2447.4,2447.3,1.14862]
[1725479650618,3.61641,2447.5,2447.3,2.19425438]
[1725479650825,3.61641,2447.5,2447.4,0.55045871]
[1725479651122,3.61641,2447.5,2447.4,1.04563438]
[1725479651717,4.00861,2447.5,2447.4,1.04563438]
[1725479651920,3.61641,2447.5,2447.4,1.04563438]
[1725479653825,11.54351,2447.5,2447.4,1.04563438]
[1725479654021,11.54351,2447.5,2447.2,0.3719]
[1725479654022,0.40863,2447.3,2447.2,0.3719]
[1725479654218,3.22863,2447.3,2447.2,0.3719]
[1725479654419,3.61933,2447.3,2447.2,0.3719]
[1725479654621,4.64091,2447.3,2447.2,0.3719]
[1725479654817,0.40865,2447.2,2447.1,0.39662207]
[1725479655017,0.40865,2447.2,2447.1,1.44124862]
[1725479655018,3.61645,2447.2,2447.1,1.44124862]
[1725479655517,3.61645,2447.2,2447.1,1.84990862]
[1725479655826,1.02766207,2447.4,2447.1,4.9777163]
[1725479655827,0.00612207,2447.4,2447.1,4.9777163]
[1725479656036,0.00612207,2447.4,2447.3,0.40863]
[1725479656421,0.00612207,2447.4,2447.3,6.43485513]
[1725479656624,0.00612207,2447.4,2447.3,12.90669]
[1725479656823,3.3028,2447.8,2447.7,0.40856]
[1725479657033,3.3028,2447.8,2447.7,0.54965339]
[1725479657034,3.2078,2447.8,2447.7,0.54965339]
[1725479657530,3.2078,2447.8,2447.7,1.34981339]
[1725479657718,0.3642,2448.0,2447.8,0.40854]
[1725479657719,0.00612207,2448.0,2447.8,0.40854]
[1725479657919,0.00612207,2448.0,2447.7,4.4772]
[1725479657920,3.23463207,2448.0,2447.9,0.91795987]
[1725479658135,2.82612207,2448.0,2447.9,0.3685]
[1725479658429,2.82612207,2448.0,2447.9,1.41225137]
[1725479659326,2.82612207,2448.0,2447.9,0.3685]
[1725479660028,3.23463207,2448.0,2447.9,0.3685]
[1725479660229,3.23463207,2448.0,2447.7,0.3916]
[1725479660230,0.40855,2447.8,2447.7,0.3916]
[1725479660428,6.63621019,2447.8,2447.7,0.3916]
[1725479660830,3.81621019,2447.8,2447.7,0.3916]
[1725479661325,3.61635,2447.8,2447.7,0.3916]
[1725479662726,6.6387856,2447.8,2447.7,0.3916]
[1725479663324,3.2078,2447.8,2447.7,0.3916]